Cogmind - Beta 16.1 --- EXPLORER MODE // 2026.02.10 @ 02:07:59 Player: Dylab Result: Core destroyed Performance ------------- Evolutions (0) 0 Regions Visited (2) 400 Robots Destroyed (11) 55 Value Destroyed (267) 267 Prototype IDs (0) 0 Alien Tech Used (0) 0 Bonus (0) 0 TOTAL SCORE: 722 Bonus ------- None Cogmind --------- Core Integrity 0/250 Matter 300/300 Energy 100/100 System Corruption 0% Temperature Cool (0) Movement Rolling (90) Location -10/Mines Parts ------- > --- POWER (1) -------- (None) > --- PROPULSION (2) --- Armored Wheel > --- UTILITY (3) ------ Targeting Computer > --- WEAPON (2) ------- (None) > --- INVENTORY (5) ---- Flight Unit Improved Heat Sink Improved Heat Sink Core Shielding Light Cannon Peak State ------------ > --- POWER ------------ Improved Ion Engine > --- PROPULSION ------- Armored Wheel Armored Wheel > --- UTILITY ---------- Targeting Computer Targeting Computer Weapon Shielding > --- WEAPON ----------- Heavy Assault Rifle Heavy Assault Rifle > --- INVENTORY -------- Ion Engine Medium Storage Unit Core Shielding Assault Rifle Light Assault Rifle [Rating: 13] Favorites ----------- Power Light Nuclear Core Engine Improved Ion Engine Power Core Light Nuclear Core Propulsion Armored Wheel Leg Aluminum Leg Wheel Armored Wheel Utility Targeting Computer Processor Targeting Computer Protection Weapon Shielding Weapon Heavy Assault Rifle Energy Gun Medium Laser Ballistic Gun Heavy Assault Rifle Ballistic Cannon Light Cannon Build | -11 -10 -10 ------- Run | Yrd Mat Min Slots Evolved 1 | . 1 . Power . | . . . Propulsion . | . . . Utility 1 | . 1 . Weapon . | . . . Parts Attached 16 | 7 9 . Power 3 | 1 2 . Engine 2 | 1 1 . Core 1 | . 1 . Reactor . | . . . Propulsion 4 | 2 2 . Treads . | . . . Leg 2 | 2 . . Wheel 2 | . 2 . Hover . | . . . Flight . | . . . Utility 3 | 2 1 . Device . | . . . Storage . | . . . Processor 2 | 2 . . Hackware . | . . . Protection 1 | . 1 . Artifact . | . . . Weapon 6 | 2 4 . Energy Gun 1 | . 1 . Energy Cannon . | . . . Ballistic Gun 4 | 2 2 . Ballistic Cannon 1 | . 1 . Launcher . | . . . Special Weapon . | . . . Impact Weapon . | . . . Slashing Weapon . | . . . Piercing Weapon . | . . . Special Melee Weapon . | . . . Unidentified Prototypes . | . . . Parts Lost 6 | . . 6 Power 1 | . . 1 Propulsion 1 | . . 1 Utility 2 | . . 2 Weapon 2 | . . 2 Highest Loss Streak 6 | . . 6 To Critical Strikes . | . . . Average Backups 4 | 1 4 5 Power . | . . . Propulsion . | . . 1 Utility 2 | 1 2 3 Weapon 1 | . 1 1 Tool/Special . | . . . Unused Backups 6 | . 2 4 Power 1 | . 1 . Propulsion 1 | . . 1 Utility 4 | . 1 3 Weapon . | . . . Tool/Special . | . . . Average Slot Usage (%) 98 | . 100 95 Engine 3 | . 5 . Core 8 | . 6 10 Leg 1 | . 2 . Wheel 23 | . 22 24 Processor 24 | . 25 23 Protection 11 | . 12 11 Energy Gun 7 | . 5 11 Ballistic Gun 14 | . 15 12 Ballistic Cannon 2 | . 3 . Peak Build Rating 13 | 7 13 13 Average Rating 11 | 5 12 12 On Entrance 6 | . 7 13 Avg Prop Armor Cover (%) . | . . . Naked Turns . | . . . Heaviest Build 14 | 8 14 11 Greatest Support 24 | 20 24 24 Greatest Overweight (x) 1 | . 1 . Average Overweight (x) . | . . . Largest Inventory Capacity 5 | 5 5 5 Average Capacity 5 | 5 5 5 Most Carried 5 | 4 5 5 Average Carried 4 | 1 4 5 Final Capacity 5 | 5 5 5 Final Carried 5 | 4 5 5 Class Distribution -------------------- 100% | Hacker-Mutant Dominant Class ---------------- Hacker-Mutant | -10/Materials Hacker-Mutant | -10/Mines Resources | -11 -10 -10 ----------- Run | Yrd Mat Min Matter Collected 529 | 167 335 27 Remotely . | . . . Salvage Created 343 | . 227 116 Parts 18 | . 15 3 Haulers Intercepted . | . . . Recyclers Shooed . | . . . Parts Field Recycled . | . . . Retrieved Matter . | . . . Parts Self-Destructed . | . . . Prevented . | . . . Parts Restored . | . . . Kills | -11 -10 -10 ------- Run | Yrd Mat Min Combat Hostiles Destroyed 7 | . 5 2 Guns 4 | . 2 2 Cannons 3 | . 3 . Classes Destroyed 6 | . 5 1 Builder 2 | . 2 . Recycler 1 | . 1 . Watcher 1 | . 1 . Swarmer 2 | . 2 . Grunt 3 | . 3 . Sentry 2 | . . 2 Best Kill Streak 8 | . 8 1 Combat Bots Only 4 | . 4 1 Max Kills in Single Turn 1 | . 1 1 Gunslinging . | . . . Exploded . | . . . Melee . | . . . Uniques/NPCs Destroyed . | . . . Combat | -11 -10 -10 -------- Run | Yrd Mat Min Hostile Shots Fired 81 | . 35 46 Missed 25 | . 11 14 Hits 56 | . 24 32 Projectile 56 | . 24 32 AOE 22 | . . 22 Critical Strikes 1 | . . 1 Damage Taken 730 | . 176 554 Core 257 | . 51 206 Absorbed by Shields . | . . . Redirected to Shielding 50 | . 18 32 Ignored by Resistances 435 | . 112 323 Core Remaining (%) 100 | 100 . . Volleys Fired 35 | . 20 15 Largest 2 | . 2 2 Hottest 73 | . 73 73 Shots Fired 70 | . 40 30 Gun 54 | . 24 30 Cannon 16 | . 16 . Launcher . | . . . Special . | . . . Kinetic 51 | . 36 15 Thermal 19 | . 4 15 Explosive . | . . . Electromagnetic . | . . . Robot Hit Streak 47 | . 36 47 Robot Miss Streak 1 | . . 1 Penetration Max . | . . . Secondary Targets 1 | . . 1 Max Gunslinging Chain 1 | . . 1 Shots Hit Robots 63 | . 36 27 Core Hits 22 | . 14 8 Critical Kills . | . . . Critical Parts Destroyed 1 | . . 1 Critical Strikes 1 | . . 1 Destroy 1 | . . 1 Melee Attacks . | . . . Impact . | . . . Slashing . | . . . Piercing . | . . . Sneak Attacks . | . . . Combat Hostiles . | . . . Follow-up Attacks . | . . . Damage Inflicted 946 | . 575 371 Guns 710 | . 339 371 Cannons 231 | . 231 . Explosions . | . . . Melee . | . . . Ramming 5 | . 5 . Kinetic 702 | . 521 181 Thermal 239 | . 49 190 Explosive . | . . . Electromagnetic . | . . . Impact . | . . . Slashing . | . . . Piercing . | . . . Highest Corruption . | . . . Average Corruption . | . . . Corruption Purged . | . . . Corruption Blocked . | . . . Overload Shots . | . . . Overflow Damage . | . . . Projectiles . | . . . Explosions . | . . . Melee . | . . . Knockbacks 4 | . 4 . Impact . | . . . Kinetic 4 | . 4 . Secondary . | . . . Self-Inflicted Damage 2 | . 2 . Shots . | . . . Rammed 2 | . 1 1 Targets Rammed 2 | . 1 1 Kicked . | . . . Crushed . | . . . Highest Temperature 234 | . 99 234 Average Temperature 67 | . 32 104 Received Heat Transfer 189 | . 117 72 Siege Activations . | . . . Martial Activations . | . . . Shielding Activations . | . . . Robots Disrupted . | . . . Combat Hostiles . | . . . Robots Corrupted . | . . . Combat Hostiles . | . . . Parts Fried . | . . . Impact Corruptions . | . . . Robots Melted . | . . . Combat Hostiles . | . . . Parts Melted 2 | . . 2 Heat Transferred 703 | . 148 555 Parts Sabotaged . | . . . Parts Stolen . | . . . Parts Stripped . | . . . Power Chain Reactions . | . . . Alert | -11 -10 -10 ------- Run | Yrd Mat Min Maximum Alert Level . | . . . Low Security (%) 100 | 100 100 100 Level 1 . | . . . Level 2 . | . . . Level 3 . | . . . Level 4 . | . . . Level 5 . | . . . High Security . | . . . Max Security . | . . . Peak Influence 92 | . 92 25 Initial . | . . . Average 14 | . 22 3 Influence Increases 209 | . 169 40 Destroy 0b10 Robot/C 140 | . 100 40 Destroy 0b10 Robot/NC 20 | . 20 . Destroy Leader 22 | . 22 . Successful Hack 7 | . 7 . Disable Machine 4 | . 4 . Destroy Structure 1 | . 1 . Partial Spotted 15 | . 15 . Influence Decreases 209 | . 169 40 Time Decay 209 | . 169 40 Squads Dispatched . | . . . Investigation . | . . . Extermination . | . . . Reinforcement . | . . . Assault . | . . . Garrison . | . . . Intercept . | . . . Searches Triggered . | . . . Construction Impeded . | . . . Haulers Reinforced . | . . . Active Scanning Responses . | . . . Cargo Convoy Interrupts . | . . . Stealth | -11 -10 -10 --------- Run | Yrd Mat Min Distress Signals . | . . . Communications Jammed . | . . . Distress Signals . | . . . Times Spotted 10 | . 7 3 Peak Tracking Total 4 | . 4 2 Tactical Retreats . | . . . Traps | -11 -10 -10 ------- Run | Yrd Mat Min Traps Triggered 2 | . 2 . Indirectly . | . . . Trap Hack Attempts . | . . . Triggered . | . . . Disarmed . | . . . Reprogrammed . | . . . Reused . | . . . Traps Extracted . | . . . Installed . | . . . Triggered . | . . . Machines | -11 -10 -10 ---------- Run | Yrd Mat Min Machines Disabled 2 | . 1 1 Max in Single Turn 1 | . 1 1 Machines Repaired . | . . . Machines Dismantled . | . . . Machines Sabotaged . | . . . Overloaded Fab Kills . | . . . Hacking | -11 -10 -10 --------- Run | Yrd Mat Min Machines Accessed 3 | . 3 . Terminals 2 | . 2 . Fabricators . | . . . Repair Stations . | . . . Recycling Units 1 | . 1 . Scanalyzers . | . . . Garrison Access . | . . . Total Hacks 4 | . 4 . Successful 4 | . 4 . Failed . | . . . Catastrophic . | . . . Database Lockouts . | . . . Manual 1 | . 1 . Terminals 2 | . 2 . Fabricators . | . . . Repair Stations . | . . . Recycling Units 2 | . 2 . Scanalyzers . | . . . Garrison Access . | . . . Terminal Hacks 2 | . 2 . Scanalyzer Index 1 | . 1 . Registered Prototypes 1 | . 1 . Fabricator Hacks . | . . . Repair Station Hacks . | . . . Recycling Unit Hacks 2 | . 2 . Retrieve Matter 2 | . 2 . Scanalyzer . | . . . Garrison Access Hacks . | . . . Unauthorized Hacks . | . . . Terminals . | . . . Fabricators . | . . . Repair Stations . | . . . Recycling Units . | . . . Scanalyzers . | . . . Garrison Access . | . . . Data Cores Recovered . | . . . Used . | . . . Hacking Detections 2 | . 2 . Full Trace Events . | . . . Feedback Events . | . . . Feedback Blocked . | . . . Robot Schematics Acquired . | . . . Robots Built . | . . . Authchips . | . . . Time . | . . . Total Robot Build Rating . | . . . Part Schematics Acquired . | . . . Parts Built . | . . . Authchips . | . . . Time . | . . . Total Part Build Rating . | . . . Part Studies Acquired . | . . . Parts Repaired . | . . . Time . | . . . Parts Recycled . | . . . Recycled Matter . | . . . Retrieved Matter . | . . . Retrieved Components . | . . . Parts Scanalyzed . | . . . Part Schematics Acquired . | . . . Parts Damaged . | . . . Bothacking | -11 -10 -10 ------------ Run | Yrd Mat Min Used RIF Installer . | . . . Robots Hacked . | . . . Non-combat . | . . . Combat . | . . . Robot Hacks Applied . | . . . Relay Couplers Released . | . . . Fabnet Peak Effective % . | . . . Robots Rewired . | . . . Allies Hacked . | . . . Hacks Repelled . | . . . Allies | -11 -10 -10 -------- Run | Yrd Mat Min Total Allies . | . . . Largest Group . | . . . Highest-Rated Group . | . . . Highest-Rated Ally . | . . . Total Orders . | . . . Ally Attacks . | . . . Total Damage . | . . . Kills . | . . . Allies Corrupted . | . . . Allies Melted . | . . . Intel | -11 -10 -10 ------- Run | Yrd Mat Min Active Infowar (turns) . | . . . Robot Analysis Total . | . . . Derelict Logs Recovered . | . . . Drone Launches . | . . . Drone Recoveries . | . . . Exploration | -11 -10 -10 ------------- Run | Yrd Mat Min Turns Passed 693 | 81 411 201 Spaces Moved 592 | 60 359 173 Core 7 | 7 . . Treads . | . . . Legs 69 | 53 16 . Wheels 516 | . 343 173 Hover . | . . . Flight . | . . . Fastest Speed 50 | 50 90 90 Average Speed 93 | 111 91 90 Slowest Speed 120 | 120 120 90 Overloaded Moves . | . . . Propulsion Burnouts . | . . . Robots Hopped . | . . . Potential Cave-ins . | . . . Cave-ins Triggered . | . . . Exploration Rate (%) 28 | 3 57 26 Regions Visited 2 Branch Regions 1 Pre-discovered Areas . | . . . Known Exits Taken 2 | 1 1 . Unknown Exits Taken . | . . . Scrap Searched . | . . . Spaces Dug . | . . . Terrain Destroyed . | . . . Melee . | . . . Projectile . | . . . AOE . | . . . Terrain Rammed . | . . . Walls Destroyed . | . . . Machines Disabled . | . . . Actions | -11 -10 -10 --------- Run | Yrd Mat Min Total 657 | 70 399 188 Wait . | . . . Move 590 | 59 358 173 Hop . | . . . Pick Up 8 | 4 4 . Fast Attach 9 | 7 2 . Attach 1 | . 1 . Detach . | . . . Swap 8 | . 8 . Drop 5 | . 5 . Fire 35 | . 20 15 Melee . | . . . Ram 1 | . 1 . Kick . | . . . Crush . | . . . Escape Stasis . | . . . Rewire . | . . . Trap . | . . . Miscellaneous . | . . . Route ------- -11/Scrapyard -10/Materials (discovered 2 exits: *Mat / *Min) -10/Mines History --------- Turn | Location | Event 4 | -11/Scrapyard | Identified exit to Materials 4 | -11/Scrapyard | Discovered exit to Materials (range 16) 82 | -11/Scrapyard | Entered Materials 82 | -10/Materials | Evolved 1 slot: Utility x1 324 | -10/Materials | Build established: Hacker-Mutant 329 | -10/Materials | Identified exit to Materials 329 | -10/Materials | Discovered exit to Materials (range 15) 466 | -10/Materials | Identified exit to Mines 466 | -10/Materials | Discovered exit to Mines (range 16) 493 | -10/Materials | Entered Mines 514 | -10/Mines | YI-UF0 nonchalantly dropped a Grenade Launcher on the ground 682 | -10/Mines | Core integrity fell below 50% 692 | -10/Mines | Core integrity fell below 20% 694 | -10/Mines | Core destroyed Last Messages --------------- 00680_ The unstable cave ceiling collapses. 00681_ G-47 Trooper destroyed. 00683_ K-01 Serf collects debris. 00684_ The unstable cave ceiling collapses. 00685_ Weapon Shielding destroyed. 00685_ Arm. Wheel destroyed. 00686_ The unstable cave ceiling collapses. 00687_ K-01 Serf collects debris. 00689_ Med. Laser destroyed. 00689_ G-34 Mercenary destroyed. 00690_ YI-UF0 mumbles something. 00691_ The unstable cave ceiling collapses. 00691_ K-01 Serf collects debris. 00691_ Hvy. Assault Rifle destroyed. 00692_ The unstable cave ceiling collapses. 00693_ YI-UF0 mumbles something. 00693_ K-01 Serf destroyed. 00694_ The unstable cave ceiling collapses. 00694_ Slammed into YI-UF0. 00694_ Destabilizing: Core damaged (-10). Map ----- +----------------------------------------------------+ | ?????????????????????????????????????????????????? | | ?????????????????????????????????????????????????? | | ?????????????????????????????????????????????????? | | ?????????????????????????????????????????????????? | | ?????????????????????????????????????????????????? | | ?????????????????????????????????????????????????? | | ?????????????????????????????????????????????????? | | ?????????????????????????????????????????????????? | | ?????????????????????????????????????????????????? | | ?????????????????????????????????????????????????? | | ?????????????????????????????????????????????????? | | ??????????????????????????? ???????????????????? | | ??????????????????????????? ??????????????????? | | ??????????????????????????? ??????????????????? | | ??????????????????????????# ???????????????????? | | ????????????????##???????? ???????????????????? | | ???????????????# ##??????? ???????????????????? | | ?##??????????## #??????# ????????????????????? | | ?# ########## #??????# #????????????????????? | | ?# #???????# #????????????????????? | | ?# #???????# #????????????????????? | | ??# ### #???#####* #????????????????????? | | ??####### ##??## # %=#????????????????????? | | ???##" ## ######g = ###??????????????????? | | ???#""*%# #### ! #??????????????????? | | ???#[= !+ ## @ % ###????????????????? | | ???#!= ! g #????????????????? | | ???#"" %# t #????????????????? | | ???## ## # ##??????????????? | | ????###### # # #??????????????? | | ?????????# % # ####???????????? | | ?????????## # # # #???????????? | | ?????##### # ########## #???????????? | | ????## # #######???###### #???????????? | | ?#### ###### ??????????# #???????????? | | ## ###????####??????????# """" #?########### | | ##???#####????????????# """" #?# | | #???## ############## """" #?# | | ##?### ### | | ##?## ] """" | | ##??# ################ """" | | ## ##???# ##??????????????# """" ### """" """" | | ?###?????## ##???????????????# #?# """" """" | | ??????????####????????????????########?# """" """" | | ???????????????????????????????????????##########? | | ?????????????????????????????????????????????????? | | | | | | | | | +----------------------------------------------------+ Best States ------------- Heat Dissipation 25 Energy Generation 14 Energy Capacity 265 Matter Stores 300 Matter Capacity 300 Sight Range 16 Terrain Scan Density 10 Resistance: KI 35 Resistance: TH 35 Resistance: EX 35 Resistance: EM 35 Resistance: I 35 Resistance: S 35 Resistance: P 35 Weapon Shielding 33 Evasion (%) 50 Targeting Accuracy 10 Offensive Hacking 20 Item Schematics ----------------- None Robot Schematics ------------------ None Fabricated ------------ Nothing Repaired ---------- Nothing Studied --------- None Alien Tech Used ----------------- None Achievements -------------- None Challenges ------------ None Game ------ Seed CloakCloakHumpback Manual? 0 Play Time 00:07:52 Cumulative 89.7 hours Start 2026.02.10 @ 02:01:29 End 2026.02.10 @ 02:07:59 Sessions 1 Manual Loads 0 Difficulty Explorer Special Mode None Game No. 66 Rogue 1 Adventurer 3 Explorer 62 Win Type - Total 1 Types 1/0/0/0/0/0/0/0/0/0 Lore% 20 Gallery% 46 Achievement% 33 Wizard Run 0 Options --------- Layout 0 ASCII 0 Keyboard 0 Movement Numpad Keybinds 1 Fullscreen 2 Font 24/Smallcaps Map View 38x28 Zoom Use 100% Tactical HUD 1 Map Filters NONE Filters NONE Steam 1 RUN: 2d393259-92b6-4d7d-98c6-65641961100f